fUST/lending_fUST_20240723
["ID","MTS","AMOUNT","RATE_DAILY","PERIOD"]
[332899805,1721664453489,-155.78948191,0.00013057,2]
[332899806,1721664554092,-155.78948191,0.00012119,2]
[332899807,1721664558089,-302.41387582,0.00013157,2]
[332899808,1721664558110,-5304.84073988,0.00013234,2]
[332899809,1721664558133,-999.31170921,0.00013325,2]
[332899810,1721664558154,-209.7222771,0.000134,2]
[332899811,1721664558177,-293.8749366,0.000134,2]
[332899812,1721664558198,-200.0,0.00013425,2]
[332899813,1721664558220,-293.8749366,0.000135,2]
[332899814,1721664558244,-153.0,0.000135,2]
[332899815,1721664558266,-293.8749366,0.000135,2]
[332899816,1721664558288,-153.0,0.000135,2]
[332899817,1721664558310,-293.8749366,0.000135,2]
[332899818,1721664558333,-185.49766314,0.000135,2]
[332899935,1721664632794,-120.50233686,0.000135,2]
[332899937,1721664632807,-153.0,0.000135,2]
[332899939,1721664632818,-1212.16006784,0.00013578,2]
[332899941,1721664632828,-616.87958382,0.00013598,2]
[332899943,1721664632838,-11647.07646755,0.000136,2]
[332900048,1721664638573,-256.5219976,0.000136,2]
[332900161,1721665492465,284.17,0.000225,30]
[332900163,1721665543250,-156.60839645,9.899e-05,2]
[332900164,1721665543275,-156.60839645,9.999e-05,2]
[332900165,1721665543296,-345.22672776,0.0001,2]
[332900218,1721665647112,-681.90768172,9.9e-05,2]
[332900219,1721665647133,-154.76012181,9.999e-05,2]
[332900220,1721665647156,-163.33219647,0.0001,2]
[332900221,1721665666384,1000.0,0.00025,120]
[332900225,1721665745102,-279.26403185,9.999e-05,2]
[332900226,1721665745123,-449.32339251,0.0001,2]
[332900227,1721665745146,-250.0,0.00011896,2]
[332900228,1721665745168,-154.76012181,0.00012121,2]
[332900229,1721665745191,-154.76012181,0.00012121,2]
[332900230,1721665795612,2220.3248847,0.00012121,2]
[332900236,1721665811650,3781.68915549,0.00012121,2]
[332900259,1721665832472,-166.777066,0.00012407,2]
[332900260,1721665832481,-160.0,0.00013,2]
[332900263,1721665832493,-153.0,0.00013,2]
[332900265,1721665832503,-153.0,0.00013,2]
[332900267,1721665832513,-153.0,0.00013,2]
[332900269,1721665832524,-153.0,0.00013,2]
[332900271,1721665832534,-153.0,0.00013,2]
[332900273,1721665832546,-153.0,0.00013041,2]
[332900276,1721665832557,-153.0,0.00013041,2]
[332900278,1721665832567,-153.0,0.000131,2]
[332900279,1721665832576,-153.0,0.00013178,2]
[332900280,1721665832587,-293.8749366,0.00013178,2]
[332900281,1721665832597,-56.81897764,0.00013178,2]
[332900292,1721665838529,-96.18102236,0.00013178,2]
[332900293,1721665838540,-153.0,0.00013178,2]
[332900294,1721665838549,-293.8749366,0.00013178,2]
[332900295,1721665838559,-293.8749366,0.00013178,2]
[332900296,1721665838569,-386.7444477,0.00013178,2]
[332900297,1721665838578,-153.0,0.00013178,2]
[332900298,1721665838589,-415.3337645,0.00013178,2]
[332900299,1721665838598,-153.0,0.00013178,2]
[332900300,1721665838609,-153.0,0.00013178,2]
[332900301,1721665838619,-153.0,0.000132,2]
[332900302,1721665838630,-153.0,0.000132,2]
[332900303,1721665838640,-285.2762713,0.000132,2]
[332900304,1721665838650,-153.0,0.000132,2]
[332900305,1721665838661,-153.0,0.000133,2]
[332900306,1721665838670,-153.0,0.000133,2]
[332900307,1721665838680,-293.8749366,0.000133,2]
[332900308,1721665838690,-293.8749366,0.000133,2]
[332900309,1721665838700,-153.0,0.000133,2]
[332900310,1721665838711,-153.0,0.000133,2]
[332900311,1721665838721,-153.0,0.000133,2]
[332900312,1721665838731,-153.0,0.000133,2]
[332900313,1721665838741,-153.0,0.00013341,2]
[332900314,1721665838751,-367.39222983,0.0001337,2]
[332900315,1721665838762,-587.5808972,0.000134,2]
[332900316,1721665838773,-153.0,0.000134,2]
[332900317,1721665838783,-153.0,0.000134,2]
[332900318,1721665838793,-431.073221,0.000134,2]
[332900319,1721665838802,-206.6124252,0.000134,2]
[332900320,1721665838811,-153.0,0.000134,2]
[332900321,1721665838821,-206.6425332,0.000134,2]
[332900322,1721665838831,-5304.84073988,0.00013404,2]
[332900323,1721665838842,-200.0,0.00013425,2]
[332900324,1721665838852,-153.0,0.00013425,2]
[332900325,1721665838862,-153.0,0.00013425,2]
[332900326,1721665838871,-153.0,0.00013425,2]
[332900327,1721665838881,-153.0,0.00013425,2]
[332900328,1721665838891,-153.0,0.00013425,2]
[332900329,1721665838901,-153.0,0.00013425,2]
[332900330,1721665838910,-306.0,0.00013452,2]
[332900331,1721665838921,-153.0,0.00013478,2]
[332900332,1721665838932,-153.0,0.00013478,2]
[332900333,1721665838942,-153.0,0.00013478,2]
[332900334,1721665838952,-293.8749366,0.00013478,2]
[332900335,1721665838962,-153.0,0.00013478,2]
[332900336,1721665838971,-153.0,0.00013478,2]
[332900337,1721665838981,-1256.28525202,0.000135,2]
[332900338,1721665838990,-620.00440318,0.00013511,2]
[332900339,1721665838999,-221.6958018,0.00013551,2]
[332900340,1721665839008,-322.57824634,0.00013588,2]
[332900341,1721665839018,-887.39339376,0.00013588,2]
[332900342,1721665839028,-322.5782463,0.00013591,2]
[332900343,1721665839038,-322.5782463,0.00013593,2]
[332900344,1721665839047,-322.5782463,0.00013596,2]
[332900345,1721665839057,-555.19162542,0.00013598,2]
[332900346,1721665839067,-322.5782463,0.00013598,2]
[332900347,1721665839077,-15708.74666409,0.000136,2]
[332900348,1721665839086,-153.0,0.000136,2]
[332900349,1721665839096,-153.0,0.000136,2]
[332900350,1721665839108,-153.0,0.000136,2]
[332900351,1721665839119,-153.0,0.000136,2]
[332900352,1721665839130,-153.0,0.000136,2]
[332900353,1721665839139,-153.0,0.000136,2]
[332900354,1721665839148,-306.0,0.000136,2]
[332900355,1721665839157,-153.0,0.000136,2]
[332900356,1721665839167,-153.0,0.000136,2]
[332900357,1721665839176,-153.0,0.000136,2]
[332900358,1721665839186,-153.0,0.000136,2]
[332900359,1721665839197,-153.0,0.000136,2]
[332900360,1721665839209,-85029.73593338,0.00013676,2]
[332900361,1721665839218,-151.0,0.00013678,2]
[332900362,1721665839227,-151.0,0.00013678,2]
[332900363,1721665839236,-310245.813105,0.00013678,2]
[332900364,1721665839246,-151.0,0.00013688,2]
[332900365,1721665839255,-151.0,0.00013688,2]
[332900366,1721665839264,-5000.0,0.00013696,2]
[332900367,1721665839273,-5000.0,0.00013696,2]
[332900368,1721665839282,-5000.0,0.00013696,2]
[332900369,1721665839291,-1510.28073615,0.00013696,2]
[332900370,1721665839301,-151.0,0.00013696,2]
[332900371,1721665839310,-366.528608,0.00013696,2]
[332900372,1721665839319,-366.528608,0.00013696,2]
[332900373,1721665839328,-151.0,0.00013696,2]
[332900374,1721665839337,-151.0,0.00013696,2]
[332900375,1721665839346,-151.0,0.00013696,2]
[332900376,1721665839357,-151.0,0.00013696,2]
[332900377,1721665839366,-294.438764,0.00013696,2]
[332900378,1721665839375,-294.438764,0.00013696,2]
[332900379,1721665839384,-151.0,0.00013696,2]
[332900380,1721665839394,-151.0,0.00013696,2]
[332900381,1721665839404,-151.0,0.00013696,2]
[332900382,1721665839413,-151.0,0.00013696,2]
[332900383,1721665839422,-155.067608,0.00013696,2]
[332900384,1721665839431,-151.0,0.00013696,2]
[332900385,1721665839440,-151.0,0.00013696,2]
[332900386,1721665839449,-151.0,0.00013696,2]
[332900387,1721665839458,-424.434514,0.00013696,2]
[332900388,1721665839467,-424.434514,0.00013696,2]
[332900389,1721665839476,-6457.41628147,0.00013698,2]
[332900390,1721665839486,-11328.21,0.00013698,2]
[332900391,1721665839495,-663.55263431,0.00013698,2]
[332900392,1721665839504,-500.0,0.00013698,2]
[332900393,1721665839513,-11328.21,0.00013698,2]
[332900394,1721665839522,-11328.21,0.00013698,2]
[332900395,1721665839531,-500.0,0.00013698,2]
[332900396,1721665839540,-500.0,0.00013698,2]
[332900397,1721665839551,-500.0,0.00013698,2]
[332900398,1721665839559,-500.0,0.00013698,2]
[332900399,1721665839568,-500.0,0.00013698,2]
[332900400,1721665839577,-500.0,0.00013698,2]
[332900401,1721665839586,-984.1,0.00013698,2]
[332900402,1721665839595,-500.0,0.00013698,2]
[332900403,1721665839606,-500.0,0.00013698,2]
[332900404,1721665839615,-242.83089486,0.00013698,2]
[332900405,1721665839624,-500.0,0.00013698,2]
[332900406,1721665839633,-500.0,0.00013698,2]
[332900407,1721665839643,-500.0,0.00013698,2]
[332900408,1721665839652,-500.0,0.00013698,2]
[332900409,1721665839661,-500.0,0.00013698,2]
[332900410,1721665839670,-570.76,0.00013698,2]
[332900411,1721665839680,-500.0,0.00013698,2]
[332900412,1721665839690,-500.0,0.00013698,2]
[332900413,1721665839699,-500.0,0.00013698,2]
[332900414,1721665839709,-500.0,0.00013698,2]
[332900415,1721665839718,-500.60326137,0.00013698,2]
[332900416,1721665839727,-500.0,0.00013698,2]
[332900417,1721665839737,-500.0,0.00013698,2]
[332900418,1721665839746,-500.0,0.00013698,2]
[332900419,1721665839756,-500.0,0.00013698,2]
[332900420,1721665839766,-252.80784773,0.00013698,2]
[332900421,1721665839775,-500.0,0.00013698,2]
[332900422,1721665839785,-500.0,0.00013698,2]
[332900423,1721665839795,-503.5645159,0.00013698,2]
[332900424,1721665839804,-500.0,0.00013698,2]
[332900425,1721665839813,-500.0,0.00013698,2]
[332900426,1721665839823,-500.0,0.00013698,2]
[332900427,1721665839833,-500.000001,0.00013698,2]
[332900428,1721665839843,-446.23956577,0.00013698,2]
[332900429,1721665839854,-500.0,0.00013698,2]
[332900430,1721665839864,-500.0,0.00013698,2]
[332900431,1721665839873,-500.0,0.00013698,2]
[332900432,1721665839885,-154.71377951,0.00013698,2]
[332900433,1721665839894,-500.0,0.00013698,2]
[332900434,1721665839903,-500.0,0.00013698,2]
[332900435,1721665839913,-500.0,0.00013698,2]
[332900436,1721665839923,-514.26756787,0.00013698,2]
[332900437,1721665839932,-500.0,0.00013698,2]
[332900438,1721665839941,-500.0,0.00013698,2]
[332900439,1721665839951,-500.0,0.00013698,2]
[332900440,1721665839961,-594.07160015,0.00013698,2]
[332900441,1721665839972,-500.0,0.00013698,2]
[332900444,1721665839982,-500.0,0.00013698,2]
[332900445,1721665839991,-500.0,0.00013698,2]
[332900446,1721665840001,-500.0,0.00013698,2]
[332900447,1721665840010,-500.89620177,0.00013698,2]
[332900448,1721665840020,-267.60016793,0.00013698,2]
[332900449,1721665840030,-500.0,0.00013698,2]
[332900450,1721665840040,-500.0,0.00013698,2]
[332900451,1721665840049,-500.0,0.00013698,2]
[332900452,1721665840059,-500.0,0.00013698,2]
[332900453,1721665840068,-500.0,0.00013698,2]
[332900454,1721665840078,-500.0,0.00013698,2]
[332900455,1721665840088,-500.0,0.00013698,2]
[332900456,1721665840098,-502.68517717,0.00013698,2]
[332900458,1721665840107,-500.0,0.00013698,2]
[332900460,1721665840117,-500.0,0.00013698,2]
[332900461,1721665840129,-500.0,0.00013698,2]
[332900462,1721665840138,-620.43759471,0.00013698,2]
[332900463,1721665840148,-234.0891584,0.00013698,2]
[332900464,1721665840158,-512.54286972,0.00013698,2]
[332900466,1721665840168,-500.0,0.00013698,2]
[332900467,1721665840178,-500.0,0.00013698,2]
[332900468,1721665840187,-500.0,0.00013698,2]
[332900469,1721665840198,-500.0,0.00013698,2]
[332900470,1721665840208,-267.88663613,0.00013698,2]
[332900471,1721665840218,-521.5042719,0.00013698,2]
[332900473,1721665840228,-500.0,0.00013698,2]
[332900475,1721665840238,-500.0,0.00013698,2]
[332900477,1721665840248,-500.0,0.00013698,2]
[332900478,1721665840258,-500.0,0.00013698,2]
[332900480,1721665840268,-1787.73,0.00013698,2]
[332900482,1721665840279,-1787.73,0.00013698,2]
[332900483,1721665840288,-1787.73,0.00013698,2]
[332900484,1721665840298,-1787.73,0.00013698,2]
[332900485,1721665840308,-1787.73,0.00013698,2]
[332900486,1721665840317,-1787.73,0.00013698,2]
[332900487,1721665840327,-1787.73,0.00013698,2]
[332900488,1721665840337,-1787.73,0.00013698,2]
[332900490,1721665840347,-1787.73,0.00013698,2]
[332900492,1721665840357,-1787.73,0.00013698,2]
[332900494,1721665840366,-1787.73,0.00013698,2]
[332900496,1721665840375,-500.0,0.00013698,2]
[332900498,1721665840384,-500.0,0.00013698,2]
[332900500,1721665840394,-504.66876124,0.00013698,2]
[332900502,1721665840403,-500.0,0.00013698,2]
[332900503,1721665840412,-1787.73,0.00013698,2]
[332900504,1721665840421,-1787.73,0.00013698,2]
[332900505,1721665840431,-1787.73,0.00013698,2]
[332900506,1721665840440,-500.0,0.00013698,2]
[332900507,1721665840449,-1787.73,0.00013698,2]
[332900508,1721665840459,-500.0,0.00013698,2]
[332900509,1721665840468,-1787.73,0.00013698,2]
[332900510,1721665840477,-1787.73,0.00013698,2]
[332900511,1721665840486,-1787.73,0.00013698,2]
[332900512,1721665840496,-1787.73,0.00013698,2]
[332900513,1721665840505,-1787.73,0.00013698,2]
[332900514,1721665840514,-1787.73,0.00013698,2]
[332900515,1721665840524,-1787.73,0.00013698,2]
[332900516,1721665840533,-1787.73,0.00013698,2]
[332900517,1721665840542,-1787.80347066,0.00013698,2]
[332900518,1721665840551,-277.06716605,0.00013698,2]
[332900519,1721665840561,-500.0,0.00013698,2]
[332900520,1721665840570,-406.13167061,0.00013698,2]
[332900521,1721665840579,-563.82868975,0.00013698,2]
[332900522,1721665840588,-500.0,0.00013698,2]
[332900523,1721665840597,-500.0,0.00013698,2]
[332900524,1721665840606,-500.0,0.00013698,2]
[332900525,1721665840616,-500.0,0.00013698,2]
[332900526,1721665840625,-500.0,0.00013698,2]
[332900527,1721665840634,-620.6,0.00013698,2]
[332900528,1721665840643,-503.59785011,0.00013698,2]
[332900529,1721665840652,-500.0,0.00013698,2]
[332900530,1721665840662,-503.64069599,0.00013698,2]
[332900531,1721665840671,-500.0,0.00013698,2]
[332900532,1721665840680,-501.20525823,0.00013698,2]
[332900533,1721665840689,-500.0,0.00013698,2]
[332900534,1721665840699,-431.34980111,0.00013698,2]
[332900535,1721665840708,-500.55675731,0.00013698,2]
[332900536,1721665840718,-511.08765876,0.00013698,2]
[332900537,1721665840728,-591.44295852,0.00013698,2]
[332900538,1721665840738,-587.85,0.00013698,2]
[332900539,1721665840747,-500.0,0.00013698,2]
[332900540,1721665840757,-500.0,0.00013698,2]
[332900541,1721665840767,-500.0,0.00013698,2]
[332900542,1721665840777,-500.0,0.00013698,2]
[332900543,1721665840786,-500.0,0.00013698,2]
[332900544,1721665840795,-500.0,0.00013698,2]
[332900545,1721665840806,-500.0,0.00013698,2]
[332900546,1721665840815,-500.88649305,0.00013698,2]
[332900547,1721665840825,-502.20272351,0.00013698,2]
[332900548,1721665840834,-212.60432198,0.00013698,2]
[332900549,1721665840844,-500.0,0.00013698,2]
[332900550,1721665840854,-500.0,0.00013698,2]
[332900551,1721665840863,-500.0,0.00013698,2]
[332900552,1721665840873,-503.72147418,0.00013698,2]
[332900553,1721665840882,-500.0,0.00013698,2]
[332900554,1721665840891,-500.0,0.00013698,2]
[332900555,1721665840901,-500.0,0.00013698,2]
[332900556,1721665840911,-500.0,0.00013698,2]
[332900557,1721665840920,-500.0,0.00013698,2]
[332900558,1721665840930,-500.0,0.00013698,2]
[332900559,1721665840940,-595.10420466,0.00013698,2]
[332900560,1721665840950,-500.0,0.00013698,2]
[332900561,1721665840959,-500.0,0.00013698,2]
[332900562,1721665840969,-500.0,0.00013698,2]
[332900563,1721665840978,-500.0,0.00013698,2]
[332900564,1721665840988,-500.0,0.00013698,2]
[332900565,1721665840997,-500.0,0.00013698,2]
[332900566,1721665841007,-502.69132394,0.00013698,2]
[332900567,1721665841016,-500.0,0.00013698,2]
[332900568,1721665841025,-500.0,0.00013698,2]
[332900569,1721665841034,-500.0,0.00013698,2]
[332900570,1721665841044,-500.0,0.00013698,2]
[332900571,1721665841053,-500.0,0.00013698,2]
[332900572,1721665841062,-500.0,0.00013698,2]
[332900573,1721665841071,-500.0,0.00013698,2]
[332900575,1721665841082,-503.66852271,0.00013698,2]
[332900577,1721665841091,-500.0,0.00013698,2]
[332900579,1721665841102,-505.09817227,0.00013698,2]
[332900581,1721665841113,-500.0,0.00013698,2]
[332900582,1721665841126,-500.0,0.00013698,2]
[332900584,1721665841136,-500.0,0.00013698,2]
[332900586,1721665841145,-559.28,0.00013698,2]
[332900588,1721665841154,-500.0,0.00013698,2]
[332900590,1721665841163,-493.75174484,0.00013698,2]
[332900592,1721665841172,-516.25954644,0.00013698,2]
[332900594,1721665841181,-500.0,0.00013698,2]
[332900596,1721665841190,-500.0,0.00013698,2]
[332900598,1721665841200,-500.0,0.00013698,2]
[332900600,1721665841210,-500.0,0.00013698,2]
[332900602,1721665841220,-500.0,0.00013698,2]
[332900604,1721665841229,-500.0,0.00013698,2]
[332900606,1721665841238,-500.0,0.00013698,2]
[332900608,1721665841247,-502.18907915,0.00013698,2]
[332900610,1721665841256,-500.0,0.00013698,2]
[332900612,1721665841265,-500.0,0.00013698,2]
[332900614,1721665841274,-500.0,0.00013698,2]
[332900616,1721665841283,-500.0,0.00013698,2]
[332900618,1721665841292,-516.26409766,0.00013698,2]
[332900620,1721665841302,-508.24530935,0.00013698,2]
[332900622,1721665841311,-500.0,0.00013698,2]
[332900624,1721665841320,-555.63132399,0.00013698,2]
[332900626,1721665841329,-480.60428046,0.00013698,2]
[332900628,1721665841338,-500.0,0.00013698,2]
[332900630,1721665841349,-502.3770326,0.00013698,2]
[332900632,1721665841358,-500.0,0.00013698,2]
[332900634,1721665841367,-500.0,0.00013698,2]
[332900636,1721665841376,-500.64682098,0.00013698,2]
[332900638,1721665841385,-502.35351957,0.00013698,2]
[332900640,1721665841394,-500.0,0.00013698,2]
[332900642,1721665841403,-500.0,0.00013698,2]
[332900644,1721665841412,-500.0,0.00013698,2]
[332900645,1721665841421,-500.0,0.00013698,2]
[332900647,1721665841430,-500.0,0.00013698,2]
[332900649,1721665841440,-501.8269639,0.00013698,2]
[332900652,1721665841450,-500.0,0.00013698,2]
[332900654,1721665841459,-500.0,0.00013698,2]
[332900656,1721665841468,-501.15052007,0.00013698,2]
[332900657,1721665841477,-501.6814079,0.00013698,2]
[332900659,1721665841486,-242.53895911,0.00013698,2]
[332900661,1721665841495,-500.0,0.00013698,2]
[332900663,1721665841504,-500.0,0.00013698,2]
[332900665,1721665841513,-500.0,0.00013698,2]
[332900667,1721665841522,-500.0,0.00013698,2]
[332900669,1721665841532,-404.03518266,0.00013698,2]
[332900671,1721665841541,-512.30158509,0.00013698,2]
[332900691,1721665841718,-491.77934766,0.00013698,2]
[332900694,1721665841728,-207.88709846,0.00013698,2]
[332900696,1721665841738,-500.0,0.00013698,2]
[332900698,1721665841747,-557.46,0.00013698,2]
[332900700,1721665841757,-500.0,0.00013698,2]
[332900702,1721665841766,-500.0,0.00013698,2]
[332900704,1721665841776,-500.0,0.00013698,2]
[332900706,1721665841786,-500.0,0.00013698,2]
[332900708,1721665841795,-501.89306793,0.00013698,2]
[332900710,1721665841805,-503.66669502,0.00013698,2]
[332900712,1721665841814,-500.0,0.00013698,2]
[332900714,1721665841823,-515.84172951,0.00013698,2]
[332900716,1721665841832,-500.0,0.00013698,2]
[332900718,1721665841841,-500.0,0.00013698,2]
[332900720,1721665841850,-500.46070068,0.00013698,2]
[332900722,1721665841860,-500.0,0.00013698,2]
[332900724,1721665841870,-513.10565774,0.00013698,2]
[332900726,1721665841881,-500.0,0.00013698,2]
[332900728,1721665841891,-506.13753614,0.00013698,2]
[332900730,1721665841900,-500.43133215,0.00013698,2]
[332900732,1721665841910,-500.0,0.00013698,2]
[332900734,1721665841920,-502.74887545,0.00013698,2]
[332900736,1721665841929,-587.45150463,0.00013698,2]
[332900738,1721665841939,-500.0,0.00013698,2]
[332900740,1721665841949,-500.87085589,0.00013698,2]
[332900742,1721665841959,-500.0,0.00013698,2]
[332900744,1721665841969,-500.0,0.00013698,2]
[332900745,1721665841980,-500.0,0.00013698,2]
[332900747,1721665841990,-500.0,0.00013698,2]
[332900748,1721665842000,-500.0,0.00013698,2]
[332900749,1721665842009,-500.0,0.00013698,2]
[332900750,1721665842019,-500.0,0.00013698,2]
[332900751,1721665842028,-500.0,0.00013698,2]
[332900752,1721665842037,-500.0,0.00013698,2]
[332900753,1721665842046,-500.0,0.00013698,2]
[332900754,1721665842056,-503.91386511,0.00013698,2]
[332900755,1721665842065,-500.0,0.00013698,2]
[332900756,1721665842074,-500.0,0.00013698,2]
[332900757,1721665842083,-500.0,0.00013698,2]
[332900758,1721665842092,-500.0,0.00013698,2]
[332900759,1721665842102,-500.0,0.00013698,2]
[332900761,1721665842111,-500.0,0.00013698,2]
[332900762,1721665842124,-502.16761621,0.00013698,2]
[332900764,1721665842134,-500.0,0.00013698,2]
[332900765,1721665842143,-500.0,0.00013698,2]
[332900766,1721665842152,-500.0,0.00013698,2]
[332900767,1721665842161,-500.0,0.00013698,2]
[332900768,1721665842170,-287.80781033,0.00013698,2]
[332900769,1721665842179,-228.20082559,0.00013698,2]
[332900770,1721665842188,-500.0,0.00013698,2]
[332900771,1721665842198,-500.0,0.00013698,2]
[332900772,1721665842208,-500.0,0.00013698,2]
[332900773,1721665842217,-621.4352851,0.00013698,2]
[332900774,1721665842226,-500.0,0.00013698,2]
[332900775,1721665842236,-500.0,0.00013698,2]
[332900776,1721665842245,-484.80066917,0.00013698,2]
[332900777,1721665842255,-500.0,0.00013698,2]
[332900778,1721665842264,-500.0,0.00013698,2]
[332900779,1721665842273,-500.0,0.00013698,2]
[332900780,1721665842282,-500.0,0.00013698,2]
[332900781,1721665842291,-410.81164326,0.00013698,2]
[332900782,1721665842300,-500.0,0.00013698,2]
[332900783,1721665842310,-500.0,0.00013698,2]
[332900784,1721665842319,-500.0,0.00013698,2]
[332900785,1721665842329,-500.0,0.00013698,2]
[332900786,1721665842338,-480.33,0.00013698,2]
[332900787,1721665842348,-500.0,0.00013698,2]
[332900788,1721665842357,-500.0,0.00013698,2]
[332900789,1721665842366,-500.0,0.00013698,2]
[332900790,1721665842376,-619.08566216,0.00013698,2]
[332900791,1721665842385,-512.58491509,0.00013698,2]
[332900792,1721665842395,-500.0,0.00013698,2]
[332900793,1721665842405,-259.59583348,0.00013698,2]
[332900794,1721665842414,-513.80969609,0.00013698,2]
[332900795,1721665842423,-500.0,0.00013698,2]
[332900796,1721665842432,-500.0,0.00013698,2]
[332900797,1721665842441,-500.0,0.00013698,2]
[332900798,1721665842450,-500.0,0.00013698,2]
[332900799,1721665842459,-503.37204851,0.00013698,2]
[332900800,1721665842468,-500.0,0.00013698,2]
[332900801,1721665842477,-500.0,0.00013698,2]
[332900802,1721665842486,-500.0,0.00013698,2]
[332900803,1721665842495,-500.0,0.00013698,2]
[332900804,1721665842504,-502.3462927,0.00013698,2]
[332900805,1721665842513,-500.0,0.00013698,2]
[332900806,1721665842521,-500.0,0.00013698,2]
[332900807,1721665842531,-500.0,0.00013698,2]
[332900808,1721665842540,-500.0,0.00013698,2]
[332900809,1721665842549,-500.0,0.00013698,2]
[332900810,1721665842558,-500.0,0.00013698,2]
[332900811,1721665842568,-500.0,0.00013698,2]
[332900812,1721665842579,-500.0,0.00013698,2]
[332900813,1721665842588,-500.0,0.00013698,2]
[332900814,1721665842598,-500.0,0.00013698,2]
[332900815,1721665842608,-500.0,0.00013698,2]
[332900816,1721665842618,-500.0,0.00013698,2]
[332900817,1721665842628,-500.0,0.00013698,2]
[332900818,1721665842639,-500.0,0.00013698,2]
[332900819,1721665842648,-566.88517477,0.00013698,2]
[332900820,1721665842657,-500.0,0.00013698,2]
[332900821,1721665842666,-500.0,0.00013698,2]
[332900822,1721665842675,-500.0,0.00013698,2]
[332900823,1721665842684,-500.0,0.00013698,2]
[332900824,1721665842693,-500.0,0.00013698,2]
[332900825,1721665842703,-500.0,0.00013698,2]
[332900826,1721665842713,-505.7213515,0.00013698,2]
[332900827,1721665842723,-500.0,0.00013698,2]
[332900828,1721665842734,-500.0,0.00013698,2]
[332900829,1721665842743,-500.0,0.00013698,2]
[332900830,1721665842754,-536.85,0.00013698,2]
[332900831,1721665842764,-500.0,0.00013698,2]
[332900832,1721665842775,-500.0,0.00013698,2]
[332900833,1721665842784,-500.0,0.00013698,2]
[332900834,1721665842793,-500.0,0.00013698,2]
[332900835,1721665842802,-500.0,0.00013698,2]
[332900836,1721665842814,-500.0,0.00013698,2]
[332900837,1721665842824,-500.0,0.00013698,2]
[332900838,1721665842835,-500.0,0.00013698,2]
[332900839,1721665842844,-617.39603663,0.00013698,2]
[332900840,1721665842856,-500.0,0.00013698,2]
[332900841,1721665842867,-500.0,0.00013698,2]
[332900842,1721665842879,-500.0,0.00013698,2]
[332900843,1721665842891,-500.0,0.00013698,2]
[332900844,1721665842903,-500.0,0.00013698,2]
[332900845,1721665842913,-500.0,0.00013698,2]
[332900846,1721665842922,-503.02447703,0.00013698,2]
[332900847,1721665842931,-500.0,0.00013698,2]
[332900848,1721665842943,-500.0,0.00013698,2]
[332900849,1721665842954,-500.0,0.00013698,2]
[332900850,1721665842965,-500.0,0.00013698,2]
[332900851,1721665842975,-578.09,0.00013698,2]
[332900853,1721665842984,-500.0,0.00013698,2]
[332900854,1721665842993,-500.0,0.00013698,2]
[332900855,1721665843002,-500.0,0.00013698,2]
[332900856,1721665843011,-500.0,0.00013698,2]
[332900857,1721665843020,-500.0,0.00013698,2]
[332900858,1721665843031,-500.0,0.00013698,2]